bitfinex/quotes_BTCUSD_20211001
["timestamp","ask_amount","ask_price","bid_price","bid_amount"]
[1633058209359,0.10655714,43529.0,43526.0,0.020753]
[1633058209959,0.10655714,43529.0,43522.0,0.0231]
[1633058210159,0.10655627,43529.0,43526.0,0.021]
[1633058210360,0.10655627,43529.0,43526.0,0.379168]
[1633058210361,0.04011514,43529.0,43526.0,0.379168]
[1633058210562,0.04011514,43529.0,43527.0,0.02144018]
[1633058210962,0.04011514,43529.0,43527.0,0.04454018]
[1633058211163,0.04011514,43529.0,43528.0,0.02049659]
[1633058212164,0.04011514,43529.0,43528.0,0.04249659]
[1633058212762,0.04011514,43529.0,43528.0,0.02049659]
[1633058213168,0.04019596,43529.0,43528.0,0.02049659]
[1633058213770,0.04019596,43529.0,43528.0,0.02176639]
[1633058213971,0.04019596,43529.0,43528.0,0.69363649]
[1633058214167,0.04019596,43529.0,43528.0,0.71810639]
[1633058215174,0.04019596,43529.0,43528.0,0.94130639]
[1633058215370,0.04019596,43529.0,43528.0,0.91630639]
[1633058216168,0.04019596,43529.0,43528.0,0.94430639]
[1633058216572,0.04019596,43529.0,43528.0,0.22110639]
[1633058217370,0.04019596,43529.0,43528.0,0.19310639]
[1633058217771,0.03519596,43529.0,43528.0,0.19310639]
[1633058218171,0.03519596,43529.0,43528.0,0.22010639]
[1633058218372,0.03519596,43529.0,43528.0,0.07186639]
[1633058220780,0.03519596,43529.0,43528.0,0.0513698]
[1633058220982,0.03519596,43529.0,43528.0,0.0501]
[1633058221183,0.06574181,43529.0,43528.0,0.027]
[1633058221588,0.0008,43533.0,43528.0,0.027]
[1633058221589,0.0006,43542.0,43540.0,0.43575583]
[1633058221781,0.0006,43542.0,43540.0,0.71536737]
[1633058221979,0.0006,43542.0,43540.0,1.30384509]
[1633058222187,0.0004,43544.0,43543.0,0.0012823]
[1633058222383,0.0006,43547.0,43546.0,1.1004]
[1633058222577,0.0006,43547.0,43546.0,1.93807384]
[1633058222788,0.0006,43554.0,43549.0,0.34563096]
[1633058222789,0.0002,43551.0,43549.0,0.34563096]
[1633058223084,0.0002,43556.0,43551.0,1.1]
[1633058223284,0.0008,43561.0,43555.0,0.58670304]
[1633058223285,0.0006,43561.0,43555.0,0.58670304]
[1633058223479,0.138274,43566.0,43560.0,0.59367112]
[1633058223680,0.138274,43566.0,43565.0,0.97828885]
[1633058223880,0.138274,43566.0,43565.0,1.21729583]
[1633058224082,0.138274,43566.0,43565.0,1.27978572]
[1633058224279,0.163274,43566.0,43565.0,1.40631582]
[1633058224477,0.163274,43566.0,43565.0,1.40578572]
[1633058225478,0.138274,43566.0,43565.0,1.37978572]
[1633058225680,0.138274,43566.0,43565.0,2.20627902]
[1633058225876,0.138274,43566.0,43565.0,1.88429923]
[1633058226280,0.150274,43566.0,43565.0,1.91729923]
[1633058226477,0.150274,43566.0,43565.0,2.03459154]
[1633058226677,0.150274,43566.0,43565.0,1.81729923]
[1633058227475,0.150274,43566.0,43565.0,1.88429923]
[1633058227681,0.0408,43569.0,43565.0,1.88429923]
[1633058227682,0.0006,43571.0,43566.0,0.076426]
[1633058227886,0.001,43576.0,43574.0,0.18012697]
[1633058228080,0.001,43576.0,43574.0,1.17191035]
[1633058228285,0.0004,43577.0,43575.0,0.0002]
[1633058228480,0.0004,43577.0,43576.0,0.60133799]
[1633058228680,0.0004,43577.0,43576.0,0.88468166]
[1633058228880,0.0004,43577.0,43576.0,0.98468166]
[1633058229084,0.0004,43577.0,43576.0,0.70354424]
[1633058229278,0.0004,43577.0,43576.0,0.60354424]
[1633058229480,0.0004,43577.0,43576.0,0.70481355]
[1633058229879,0.0004,43577.0,43576.0,0.6001]
[1633058230280,0.0004,43577.0,43576.0,0.6311]
[1633058230879,0.0004,43577.0,43576.0,0.031]
[1633058231182,0.0004,43577.0,43574.0,0.18012697]
[1633058231183,0.00163283,43577.0,43574.0,0.18012697]
[1633058231379,0.00163283,43577.0,43565.0,0.8264933]
[1633058231380,0.1702217,43574.0,43565.0,0.8264933]
[1633058231789,0.0231,43573.0,43568.0,0.19825997]
[1633058232079,0.09128955,43570.0,43566.0,0.03737561]
[1633058232279,0.1882217,43574.0,43566.0,0.03737561]
[1633058232682,0.1882217,43574.0,43570.0,0.344288]
[1633058232890,0.1882217,43574.0,43572.0,0.07940846]
[1633058233083,0.1882217,43574.0,43573.0,1.03719533]
[1633058233278,0.1882217,43574.0,43573.0,1.14294681]
[1633058233479,0.1882217,43574.0,43573.0,0.89376067]
[1633058233678,0.1882217,43574.0,43573.0,0.96991655]
[1633058233881,0.1882217,43574.0,43573.0,1.31417155]
[1633058234279,0.1882217,43574.0,43573.0,0.59672163]
[1633058234280,0.1932217,43574.0,43573.0,0.59672163]
[1633058234680,0.1933283,43574.0,43573.0,0.59672163]
[1633058234881,0.1933283,43574.0,43568.0,0.229503]
[1633058234882,0.45000648,43573.0,43568.0,0.0231]
[1633058235084,0.45000648,43573.0,43565.0,0.8264933]
[1633058235085,0.00129718,43569.0,43565.0,0.8264933]
[1633058235284,0.07581857,43566.0,43565.0,0.8264933]
[1633058235483,0.09891857,43566.0,43565.0,0.8264933]
[1633058235680,0.15130698,43566.0,43565.0,0.8264933]
[1633058235885,0.3539711,43566.0,43565.0,0.8264933]
[1633058236290,0.3919711,43566.0,43565.0,0.8264933]
[1633058237281,0.3869711,43566.0,43565.0,0.8264933]
[1633058237481,0.11820698,43566.0,43565.0,0.8264933]
[1633058238282,0.38810824,43566.0,43565.0,0.8264933]
[1633058238482,0.38500836,43566.0,43565.0,0.8264933]
[1633058239682,0.34700836,43566.0,43565.0,0.8264933]
[1633058240082,0.11820698,43566.0,43565.0,0.8264933]
[1633058240284,0.10381857,43566.0,43565.0,0.8264933]
[1633058240684,0.10511397,43566.0,43565.0,0.8264933]
[1633058240888,0.33484297,43566.0,43565.0,0.8264933]
[1633058241086,0.58816052,43566.0,43552.0,0.7752]
[1633058241288,0.06769709,43560.0,43550.0,0.00125162]
[1633058241486,0.19555121,43555.0,43550.0,0.00125162]
[1633058241684,0.24748288,43554.0,43550.0,0.00125162]
[1633058241887,0.01641532,43557.0,43550.0,0.00125162]
[1633058242085,0.0231,43559.0,43551.0,0.08098249]
[1633058242086,0.12132478,43559.0,43551.0,0.08098249]
[1633058242284,0.12132478,43559.0,43550.0,0.03525162]
[1633058242685,0.01377517,43557.0,43550.0,0.03525162]
[1633058243285,0.19531369,43557.0,43550.0,0.03525162]
[1633058243483,0.18153852,43557.0,43550.0,0.03525162]
[1633058243683,0.18153852,43557.0,43550.0,0.00125162]
[1633058243684,0.03458184,43556.0,43550.0,0.00125162]
[1633058244283,0.03458184,43556.0,43550.0,0.02625162]
[1633058244284,0.04858184,43556.0,43550.0,0.02625162]
[1633058244688,0.00616955,43555.0,43550.0,0.02625162]
[1633058245086,0.01835977,43555.0,43550.0,0.02625162]
[1633058245287,8.2e-05,43554.0,43550.0,0.02625162]
[1633058246086,8.2e-05,43554.0,43550.0,0.00125162]
[1633058246288,0.016082,43554.0,43550.0,0.02525162]
[1633058246487,0.016082,43554.0,43550.0,0.024]
[1633058246687,0.01025318,43553.0,43550.0,0.024]
[1633058246888,0.01178044,43553.0,43550.0,0.024]
[1633058247089,0.0105185,43552.0,43550.0,0.024]
[1633058247488,0.0105185,43552.0,43547.0,0.00126365]
[1633058247748,0.0105185,43552.0,43546.0,0.5334702]
[1633058248158,0.0105185,43552.0,43551.0,0.00128872]
[1633058248359,0.0105185,43552.0,43551.0,1.53688216]
[1633058248360,6.243e-05,43552.0,43551.0,1.53688216]
[1633058248548,6.243e-05,43552.0,43551.0,1.40724431]
[1633058249152,0.19544392,43566.0,43561.0,0.08557989]
[1633058249352,0.03036645,43565.0,43561.0,0.08557989]
[1633058249551,0.1702217,43574.0,43561.0,0.08557989]
[1633058249758,0.1702217,43574.0,43566.0,0.02239555]
[1633058249950,0.1702217,43574.0,43567.0,0.1517479]
[1633058250153,0.24141652,43570.0,43569.0,0.01628651]
[1633058250348,0.1702217,43574.0,43566.0,0.024]
[1633058250349,0.01556201,43573.0,43566.0,0.024]
[1633058250554,0.344413,43572.0,43566.0,0.024]
[1633058250757,0.00124125,43567.0,43566.0,0.024]
[1633058250950,0.24648002,43567.0,43566.0,0.024]
[1633058251150,0.23097025,43567.0,43566.0,0.024]
[1633058251354,0.1,43573.0,43566.0,0.024]
[1633058251554,0.0828204,43569.0,43566.0,0.024]
[1633058251751,0.1,43573.0,43566.0,0.024]
[1633058251954,0.01614408,43572.0,43566.0,0.024]
[1633058252354,0.01614408,43572.0,43566.0,0.022]
[1633058252552,0.00128582,43571.0,43566.0,0.022]
[1633058252756,0.344423,43569.0,43566.0,0.022]
[1633058252960,0.24597925,43568.0,43566.0,0.022]
[1633058253154,0.20636608,43567.0,43566.0,0.022]
[1633058253352,0.52938618,43567.0,43566.0,0.022]
[1633058253756,0.52938618,43567.0,43558.0,0.23730328]
[1633058253757,0.29965718,43567.0,43558.0,0.23730328]
[1633058253955,0.03068891,43566.0,43558.0,0.23730328]
[1633058254362,0.03068891,43566.0,43558.0,0.25830328]
[1633058254554,0.03068891,43566.0,43558.0,0.021]
[1633058254757,0.18172976,43560.0,43558.0,0.021]
[1633058255157,0.25045641,43563.0,43558.0,0.921]
[1633058255158,0.01139508,43559.0,43558.0,0.921]
[1633058255357,0.03506877,43567.0,43558.0,0.021]
[1633058255358,0.25541781,43566.0,43558.0,0.021]
[1633058255558,0.01520103,43565.0,43558.0,0.021]
[1633058255958,0.07285465,43562.0,43555.0,0.07846954]
[1633058256162,0.22677496,43561.0,43555.0,0.07846954]
[1633058256357,0.03061479,43560.0,43558.0,0.02]
[1633058257161,7.432e-05,43564.0,43558.0,0.02]
[1633058257362,0.01401021,43563.0,43558.0,0.02]
[1633058257564,0.01401021,43563.0,43558.0,0.344403]
[1633058258162,0.07835825,43561.0,43555.0,0.07968536]
[1633058258361,0.24248023,43560.0,43559.0,0.12317065]
[1633058258563,0.24374945,43560.0,43559.0,0.12317065]
[1633058258764,0.53545594,43560.0,43558.0,0.022]
[1633058258964,0.49129691,43559.0,43558.0,0.022]
[1633058259165,0.25883324,43559.0,43558.0,0.022]
[1633058259760,0.48996929,43559.0,43558.0,0.022]
[1633058260163,0.48496929,43559.0,43549.0,0.19438582]
[1633058260365,0.48496929,43559.0,43548.0,0.229649]
[1633058260366,0.02632782,43558.0,43548.0,0.229649]
[1633058260762,0.03802732,43556.0,43545.0,0.19180994]
[1633058260962,0.07311246,43554.0,43546.0,0.0004]
[1633058261162,0.01328591,43553.0,43546.0,0.0004]
[1633058261361,0.344541,43552.0,43546.0,0.0004]
[1633058261561,0.01328591,43553.0,43546.0,0.0004]
[1633058261562,0.24681552,43551.0,43546.0,0.0004]
[1633058261967,0.01272634,43550.0,43546.0,0.0004]
[1633058262163,0.01272634,43550.0,43546.0,0.08756519]
[1633058262362,0.01272634,43550.0,43546.0,0.12156519]
[1633058262770,0.01272634,43550.0,43546.0,0.0344]
[1633058263563,0.01272634,43550.0,43546.0,0.0004]
[1633058264365,0.03972634,43550.0,43546.0,0.0234]
[1633058265369,0.01263676,43549.0,43546.0,0.0234]
[1633058265768,0.01263676,43549.0,43546.0,0.0004]
[1633058266369,0.03963676,43549.0,43546.0,0.0234]
[1633058266571,0.01306814,43548.0,43546.0,0.0234]
[1633058268173,0.027,43549.0,43546.0,0.0234]
[1633058270173,0.026,43548.0,43546.0,0.0234]
[1633058270372,0.026,43548.0,43546.0,0.0454]
[1633058270574,0.02632017,43547.0,43546.0,0.0454]
[1633058270775,0.026,43548.0,43546.0,0.0454]
[1633058270974,0.026,43548.0,43546.0,0.27767214]
[1633058271174,0.026,43548.0,43546.0,0.37589775]
[1633058271573,0.026,43548.0,43547.0,0.23041885]
[1633058271774,0.00127225,43558.0,43547.0,0.23041885]
[1633058272173,0.23712547,43556.0,43547.0,0.23041885]
[1633058272372,0.23712547,43556.0,43547.0,0.25041885]
[1633058272773,0.23712547,43556.0,43547.0,0.25094895]
[1633058272974,0.23712547,43556.0,43547.0,0.25041885]
[1633058273177,0.23712547,43556.0,43548.0,0.0005301]
[1633058273376,0.08977023,43557.0,43549.0,0.00126899]
[1633058273574,0.026,43558.0,43550.0,0.21927448]
[1633058273776,0.23267688,43564.0,43551.0,0.0005301]
[1633058274175,0.23267688,43564.0,43550.0,0.21980458]
[1633058274376,0.24297287,43555.0,43549.0,0.23144309]
[1633058274577,0.08300447,43557.0,43549.0,0.23091299]
[1633058274778,0.02525716,43556.0,43549.0,0.23091299]
[1633058274976,0.02749559,43555.0,43549.0,0.23091299]
[1633058275178,0.02525716,43556.0,43549.0,0.23091299]
[1633058275684,0.02525716,43556.0,43550.0,0.16965066]
[1633058275878,0.23484635,43564.0,43555.0,0.00128485]
[1633058276076,0.5437,43565.0,43555.0,0.00128485]
[1633058276275,0.0125471,43564.0,43554.0,0.00129961]
[1633058276477,0.01159015,43563.0,43555.0,0.007]
[1633058276777,0.19543955,43560.0,43559.0,1.93731873]
[1633058277478,0.51294399,43560.0,43555.0,0.007]
[1633058277683,0.00121775,43556.0,43546.0,0.0004]
[1633058278080,0.08863141,43554.0,43547.0,0.0790696]
[1633058278279,0.23836542,43553.0,43547.0,0.0790696]
[1633058278478,0.28836542,43553.0,43547.0,0.23247997]
[1633058278682,0.02988059,43552.0,43547.0,0.23247997]
[1633058280279,0.344556,43550.0,43547.0,0.23247997]
[1633058280478,0.26455443,43552.0,43547.0,0.24947997]
[1633058281282,0.07826092,43551.0,43547.0,0.017]
[1633058281679,0.07826092,43551.0,43546.0,0.0004]
[1633058281878,0.01288291,43550.0,43546.0,0.0004]
[1633058282480,0.03988291,43550.0,43546.0,0.0194]
[1633058282682,0.00128406,43547.0,43546.0,0.0194]
[1633058282886,0.26531677,43547.0,43546.0,0.0194]
[1633058283079,0.52620055,43547.0,43546.0,0.0194]
[1633058283483,0.57620055,43547.0,43546.0,0.0194]
[1633058283680,0.57620055,43547.0,43546.0,0.0004]
[1633058284281,0.92080655,43547.0,43546.0,0.0004]
[1633058284483,0.95780655,43547.0,43546.0,0.0004]
[1633058285882,0.92080655,43547.0,43546.0,0.0004]
[1633058286286,0.88650284,43547.0,43546.0,0.0004]
[1633058286484,0.92450284,43547.0,43546.0,0.0004]
[1633058287284,0.92450284,43547.0,43546.0,1.68226335]
[1633058287484,0.69477384,43547.0,43546.0,1.68226335]
[1633058288485,0.69477384,43547.0,43546.0,0.0004]
[1633058288884,0.92450284,43547.0,43546.0,0.0004]
[1633058289684,0.88650284,43547.0,43546.0,0.0004]
[1633058290285,0.98650284,43547.0,43546.0,0.0004]
[1633058290488,1.02350284,43547.0,43546.0,0.0004]
[1633058290985,0.79377384,43547.0,43546.0,0.0004]
[1633058291787,0.75677384,43547.0,43546.0,0.0004]
[1633058291985,0.65677384,43547.0,43546.0,0.0004]
[1633058292647,0.69277384,43547.0,43546.0,0.0004]
[1633058292787,0.69430128,43547.0,43546.0,0.0004]
[1633058294388,0.65830128,43547.0,43546.0,0.0004]
[1633058294588,0.69330128,43547.0,43546.0,0.0004]
[1633058295788,0.65830128,43547.0,43546.0,0.0004]
[1633058296591,1.02403028,43547.0,43546.0,0.0004]
[1633058297789,0.98803028,43547.0,43546.0,0.0004]
[1633058298589,1.02503028,43547.0,43546.0,0.0004]
[1633058299789,0.98803028,43547.0,43546.0,0.0004]
[1633058300590,1.02503028,43547.0,43546.0,0.0004]
[1633058301392,0.7641465,43547.0,43546.0,0.0004]
[1633058301792,0.7271465,43547.0,43546.0,0.0004]
[1633058301993,0.96079225,43547.0,43546.0,0.0004]
[1633058302595,0.7641465,43547.0,43546.0,0.0004]
[1633058303897,0.7271465,43547.0,43546.0,0.0004]
[1633058304101,0.9607639,43547.0,43546.0,0.0004]
[1633058304497,0.9947639,43547.0,43546.0,0.0004]
[1633058305899,0.9607639,43547.0,43546.0,0.0004]
[1633058306701,0.9947639,43547.0,43546.0,0.0004]
[1633058306904,1.0178639,43547.0,43546.0,0.0004]
[1633058307103,1.01852375,43547.0,43546.0,0.0004]
[1633058307304,1.30849375,43547.0,43546.0,0.0004]
[1633058307505,1.46002639,43547.0,43540.0,0.37431098]
[1633058307702,0.95121384,43541.0,43540.0,0.37431098]
[1633058307904,1.45671769,43541.0,43540.0,0.37431098]
[1633058308105,1.85161733,43541.0,43540.0,0.37431098]
[1633058308504,0.22982474,43534.0,43526.0,0.06490194]
[1633058308703,0.22982474,43534.0,43525.0,0.06492608]
[1633058308704,0.01838727,43532.0,43525.0,0.06492608]
[1633058309099,0.01838727,43532.0,43524.0,0.06493638]
[1633058309302,0.11838727,43532.0,43524.0,0.06493638]
[1633058309499,0.01724296,43531.0,43524.0,0.06493638]
[1633058309700,0.2298391,43530.0,43525.0,0.22265656]
[1633058309900,0.4475376,43529.0,43525.0,0.22265656]
[1633058310105,0.394759,43529.0,43525.0,0.22265656]
[1633058310300,0.01361077,43528.0,43525.0,0.22265656]
[1633058311700,0.01361077,43528.0,43522.0,0.07150787]
[1633058312702,0.04561077,43528.0,43525.0,0.18038197]
[1633058313302,0.02451922,43527.0,43519.0,0.06497268]
[1633058313503,0.21478946,43527.0,43519.0,0.26058252]
[1633058313767,0.344765,43523.0,43519.0,0.06497268]
[1633058313961,0.16305187,43523.0,43519.0,0.7]
[1633058314162,0.16305187,43523.0,43519.0,0.09313588]
[1633058314362,0.16305187,43523.0,43520.0,0.26131414]
[1633058314565,0.17205187,43523.0,43520.0,0.26131414]
[1633058314763,0.17205187,43523.0,43520.0,0.24898164]
[1633058314962,0.01944403,43522.0,43520.0,0.24898164]
[1633058316166,0.344777,43521.0,43520.0,0.24898164]
[1633058316565,0.394777,43521.0,43520.0,0.24898164]
[1633058318366,0.39630536,43521.0,43520.0,0.24898164]
[1633058318566,0.42530536,43521.0,43520.0,0.24898164]
[1633058319369,0.42530536,43521.0,43520.0,1.03786295]
[1633058319969,0.39630536,43521.0,43520.0,1.03786295]
[1633058320169,0.34630536,43521.0,43520.0,1.03786295]
[1633058320570,0.37530536,43521.0,43520.0,1.03786295]
[1633058321972,0.39630536,43521.0,43520.0,1.03786295]
[1633058322173,0.49753041,43521.0,43520.0,1.03786295]
[1633058322377,0.34630536,43521.0,43520.0,1.03786295]
[1633058322572,0.37330536,43521.0,43520.0,1.03786295]
[1633058323973,0.34630536,43521.0,43520.0,1.03786295]
[1633058324575,0.39630536,43521.0,43520.0,1.03786295]
[1633058324776,0.52657086,43521.0,43520.0,1.03786295]
[1633058324981,0.44554022,43521.0,43520.0,1.03786295]
[1633058325174,0.54554022,43521.0,43520.0,1.03786295]
[1633058325973,0.51654022,43521.0,43520.0,1.03786295]
[1633058326175,0.51527472,43521.0,43520.0,1.03786295]
[1633058326378,0.00152836,43521.0,43520.0,1.03786295]
[1633058326575,0.03752836,43521.0,43520.0,1.03786295]
[1633058327977,0.00152836,43521.0,43520.0,1.03839305]
[1633058328176,0.00152836,43521.0,43520.0,1.03786295]
[1633058328779,0.03352836,43521.0,43520.0,1.03786295]
[1633058329980,0.00152836,43521.0,43520.0,1.03786295]
[1633058330780,0.03552836,43521.0,43520.0,1.03786295]
[1633058331582,0.03552836,43521.0,43520.0,1.26236174]
[1633058331788,0.22984972,43539.0,43520.0,1.26236174]
[1633058331789,1.38224361,43540.0,43532.0,0.1074686]
[1633058331985,1.38224361,43540.0,43521.0,1.1]
[1633058331986,0.25214361,43540.0,43538.0,0.00124693]
[1633058332186,0.2429645,43539.0,43527.0,0.30967777]
[1633058332383,0.2429645,43539.0,43525.0,0.00125231]
[1633058332384,0.0132355,43539.0,43525.0,0.00125231]
[1633058332585,0.344725,43531.0,43526.0,0.23543029]
[1633058332785,0.344725,43531.0,43527.0,0.013]
[1633058332983,0.394725,43531.0,43527.0,0.013]
[1633058333182,0.05,43531.0,43528.0,0.01240134]
[1633058333584,0.18897704,43530.0,43527.0,0.013]
[1633058333783,0.394732,43530.0,43527.0,0.013]
[1633058333983,0.05,43530.0,43527.0,0.013]
[1633058334186,0.509633,43533.0,43527.0,0.013]
[1633058334385,0.1,43532.0,43527.0,0.013]
[1633058334582,0.1,43532.0,43525.0,2.57775729]
[1633058334786,0.1,43532.0,43527.0,0.013]
[1633058334986,0.344745,43529.0,43528.0,0.01242528]
[1633058335387,0.394745,43529.0,43527.0,0.013]
[1633058335984,0.394745,43529.0,43525.0,2.57775729]
[1633058336183,0.34474,43527.0,43526.0,0.01239821]
[1633058336383,0.39474,43527.0,43525.0,2.57775729]
[1633058336785,0.42974,43527.0,43526.0,0.016]
[1633058337587,0.2302765,43527.0,43526.0,0.016]
[1633058337988,0.1952765,43527.0,43525.0,2.57775729]
[1633058338786,0.2232765,43527.0,43525.0,2.59875729]
[1633058339986,0.03570413,43527.0,43525.0,2.57775729]
[1633058340789,0.03570413,43527.0,43525.0,2.59575729]
[1633058340790,0.06970413,43527.0,43525.0,2.59575729]
[1633058340988,0.034,43527.0,43525.0,2.59575729]
[1633058341989,0.344729,43528.0,43525.0,2.57775729]
[1633058342590,0.459633,43533.0,43525.0,2.57775729]
[1633058342791,0.344689,43534.0,43528.0,0.11233772]
[1633058343001,0.11194749,43539.0,43529.0,0.23283722]
[1633058343198,0.01194749,43539.0,43533.0,0.00120319]
[1633058343792,0.20424986,43537.0,43534.0,0.0062659]
[1633058344192,0.20424986,43537.0,43534.0,0.21929399]
[1633058344394,0.20424986,43537.0,43535.0,0.01241211]
[1633058344794,0.22924986,43537.0,43534.0,0.018]
[1633058345196,0.22924986,43537.0,43534.0,0.013]
[1633058345997,0.27924986,43537.0,43534.0,0.013]
[1633058346394,0.344677,43536.0,43534.0,0.013]
[1633058346595,0.25424986,43537.0,43532.0,0.22050354]
[1633058346798,0.26924986,43537.0,43534.0,0.009]
[1633058347000,0.26924986,43537.0,43534.0,0.01028058]
[1633058347996,0.25424986,43537.0,43534.0,0.00128058]
[1633058348798,0.26824986,43537.0,43534.0,0.01628058]
[1633058349998,0.25424986,43537.0,43534.0,0.00128058]
[1633058350202,0.25424986,43537.0,43534.0,0.00126279]
[1633058350400,0.05,43537.0,43534.0,0.00126279]
[1633058350800,0.014,43537.0,43534.0,0.01326279]
[1633058352004,0.54661897,43540.0,43534.0,0.00126279]
[1633058352804,0.56161897,43540.0,43534.0,0.01626279]
[1633058353805,0.56161897,43540.0,43535.0,0.229755]
[1633058354005,0.54661897,43540.0,43536.0,0.01235344]
[1633058354205,0.54661897,43540.0,43535.0,0.229755]
[1633058354808,0.56661897,43540.0,43535.0,0.248755]
[1633058356007,0.54661897,43540.0,43538.0,0.19130776]
[1633058356212,0.54661897,43540.0,43539.0,0.01350165]
[1633058356808,0.56661897,43540.0,43539.0,0.02550165]
[1633058358009,0.54661897,43540.0,43539.0,0.01350165]
[1633058358208,0.54661897,43540.0,43538.0,0.19130776]
[1633058358815,0.56661897,43540.0,43538.0,0.20530776]
[1633058360013,0.54661897,43540.0,43538.0,0.19130776]
[1633058360815,0.52461897,43540.0,43538.0,0.20430776]
[1633058362015,0.49661897,43540.0,43538.0,0.19130776]
[1633058362217,0.54661897,43540.0,43538.0,0.19130776]
[1633058362817,0.56661897,43540.0,43538.0,0.20530776]
[1633058363018,0.32214361,43540.0,43538.0,0.20530776]
[1633058364024,0.30214361,43540.0,43536.0,0.44708738]
[1633058364224,0.02001621,43538.0,43536.0,0.229749]
[1633058364823,0.03201621,43538.0,43536.0,0.246749]
[1633058365621,0.03201621,43538.0,43537.0,0.00615142]
[1633058366023,0.02001621,43538.0,43536.0,0.229749]
[1633058366222,0.25367131,43540.0,43536.0,0.229749]
[1633058366223,0.30367131,43540.0,43536.0,0.229749]
[1633058366825,0.31967131,43540.0,43536.0,0.244749]
[1633058367224,0.31467131,43540.0,43536.0,0.244749]
[1633058368026,0.29867131,43540.0,43536.0,0.229749]
[1633058368825,0.31167131,43540.0,43536.0,0.246749]
[1633058369827,0.31167131,43540.0,43536.0,0.017]
[1633058370024,0.30494426,43540.0,43534.0,0.00126279]
[1633058370827,0.32794426,43540.0,43534.0,0.01926279]
[1633058371231,0.344663,43538.0,43534.0,0.01926279]
[1633058371431,0.344663,43538.0,43535.0,0.01228511]
[1633058372027,0.344663,43538.0,43534.0,0.00126279]
[1633058372228,0.344663,43538.0,43534.0,0.18040373]
[1633058372428,0.30494426,43540.0,43535.0,0.229751]
[1633058372629,0.25214361,43540.0,43539.0,1.10247078]
[1633058372833,0.25214361,43540.0,43539.0,1.16139511]
[1633058373028,0.25214361,43540.0,43539.0,1.49636898]
[1633058373229,0.25214361,43540.0,43539.0,0.39684381]
[1633058373230,0.1513497,43540.0,43539.0,0.39684381]
[1633058373429,0.1513497,43540.0,43539.0,0.84933225]
[1633058374030,2.5512,43552.0,43542.0,0.229694]
[1633058374230,1.4999,43552.0,43546.0,0.00124688]
[1633058374433,1.4999,43552.0,43546.0,0.46984088]
[1633058374434,0.5685,43552.0,43546.0,0.46984088]
[1633058374627,0.5685,43552.0,43547.0,0.31370633]
[1633058374827,0.011,43552.0,43549.0,2.63303906]
[1633058375029,0.011,43552.0,43551.0,0.23957875]
[1633058375229,0.23583917,43552.0,43551.0,0.54244904]
[1633058375431,0.23583917,43552.0,43551.0,0.53630268]
[1633058375830,0.011,43552.0,43551.0,0.53630268]
[1633058376030,0.05,43554.0,43551.0,0.68374303]
[1633058376235,0.16636096,43559.0,43552.0,0.02045945]
[1633058376429,0.15,43559.0,43553.0,0.05873]
[1633058376691,0.15,43559.0,43554.0,0.29357923]
[1633058376829,0.022,43559.0,43558.0,0.00129205]
[1633058377033,0.022,43559.0,43555.0,0.0712083]
[1633058377230,0.022,43559.0,43556.0,0.01228701]
[1633058377431,0.022,43559.0,43555.0,0.05873]
[1633058377829,0.18054894,43558.0,43555.0,0.05873]
[1633058378227,0.23054894,43558.0,43555.0,0.05873]
[1633058378830,0.23054894,43558.0,43555.0,0.06873]
[1633058378831,0.25854894,43558.0,43555.0,0.06873]
[1633058379229,0.344534,43557.0,43555.0,0.06873]
[1633058379429,0.394534,43557.0,43556.0,0.22384377]
[1633058379631,0.394534,43557.0,43556.0,0.28257377]
[1633058379831,0.394534,43557.0,43556.0,0.05873]
[1633058380829,0.418534,43557.0,43556.0,0.06173]
[1633058381630,0.43910868,43557.0,43556.0,0.06173]
[1633058381829,0.66883768,43557.0,43556.0,0.06173]
[1633058382232,0.64483768,43557.0,43556.0,0.05873]
[1633058382832,0.67683768,43557.0,43556.0,0.06173]
[1633058383030,0.67683768,43557.0,43556.0,0.28974416]
[1633058384031,0.67683768,43557.0,43556.0,0.28674416]
[1633058384231,0.64483768,43557.0,43556.0,0.05873]
[1633058384835,0.67383768,43557.0,43556.0,0.29100677]
[1633058385230,0.44410868,43557.0,43556.0,0.29100677]
[1633058385431,0.44410868,43557.0,43556.0,0.06373]
[1633058385631,0.44410868,43557.0,43556.0,0.29281673]
[1633058385835,0.09957468,43557.0,43556.0,0.29281673]
[1633058386031,0.04957468,43557.0,43556.0,0.3001554]
[1633058386231,0.02057468,43557.0,43556.0,0.3001554]
[1633058386831,0.02057468,43557.0,43556.0,0.3091554]
[1633058386832,0.02457468,43557.0,43556.0,0.3091554]
[1633058387632,0.004,43557.0,43556.0,0.3091554]
[1633058387833,0.004,43557.0,43556.0,0.06773]
[1633058388234,0.52505594,43558.0,43556.0,0.05873]
[1633058388432,0.52505594,43558.0,43557.0,0.24100579]
[1633058388634,0.52505594,43558.0,43557.0,0.29973579]
[1633058388833,0.52905594,43558.0,43557.0,0.27791188]
[1633058389033,0.52905594,43558.0,43557.0,0.05873]
[1633058389635,0.75878494,43558.0,43557.0,0.05873]
[1633058390042,0.90478494,43558.0,43557.0,0.05873]
[1633058390835,0.94578494,43558.0,43557.0,0.05873]
[1633058392036,0.90478494,43558.0,43557.0,0.05873]
[1633058392640,0.90599207,43558.0,43557.0,0.05873]
[1633058392837,0.94699207,43558.0,43557.0,0.05873]
[1633058393237,0.9640993,43558.0,43557.0,0.05873]
[1633058393438,0.9640993,43558.0,43557.0,2.47959371]
[1633058393637,0.7343703,43558.0,43557.0,2.47959371]
[1633058393840,0.73316317,43558.0,43557.0,2.47959371]
[1633058394038,0.73316317,43558.0,43557.0,2.28020214]
[1633058394240,0.67505594,43558.0,43557.0,2.28020214]
[1633058394841,0.71605594,43558.0,43557.0,0.05873]
[1633058395042,0.94578494,43558.0,43557.0,0.05873]
[1633058395445,0.94700367,43558.0,43557.0,0.05873]
[1633058396044,0.96421525,43558.0,43557.0,0.05873]
[1633058396244,0.92321525,43558.0,43557.0,0.05873]
[1633058396845,0.96521525,43558.0,43557.0,0.05873]
[1633058398447,0.92321525,43558.0,43557.0,0.05873]
[1633058398848,0.96421525,43558.0,43557.0,0.05873]
[1633058400251,0.92321525,43558.0,43557.0,0.05873]
[1633058400711,0.90600367,43558.0,43557.0,0.05873]
[1633058400856,0.94700367,43558.0,43557.0,0.05873]
[1633058401253,0.95252367,43558.0,43557.0,0.05873]
[1633058401852,1.10490317,43558.0,43557.0,0.05873]
[1633058402250,1.06390317,43558.0,43557.0,0.05873]